Cogmind - Beta 11 X11 @@@ ROGUE MODE // 2022.03.02 @ 16:44:44 Player: OccultOnion Result: Destroyed by Y-45 Defender with Beam Rifle Performance ------------- Evolutions (1) 500 Regions Visited (2) 400 Robots Destroyed (13) 65 Value Destroyed (316) 316 Prototype IDs (0) 0 Alien Tech Used (0) 0 Bonus (0) 0 TOTAL SCORE: 1281 Bonus ------- None Cogmind --------- Core Integrity 0/400 Matter 235/300 Energy 100/100 System Corruption 2% Temperature Cool (9) Movement Core (50) Location -9/Materials Parts ------- > --- POWER (1) -------- (None) > --- PROPULSION (3) --- (None) > --- UTILITY (3) ------ (None) > --- WEAPON (2) ------- (None) > --- INVENTORY (5) ---- Light Ion Engine Light Ion Engine Wheel EM Pulse Gun Grenade Launcher Peak State ------------ > --- POWER ------------ Ion Engine > --- PROPULSION ------- Aluminum Leg Aluminum Leg Aluminum Leg > --- UTILITY ---------- Small Storage Unit Small Storage Unit > --- WEAPON ----------- Medium Laser Light Assault Rifle > --- INVENTORY -------- Light Ion Engine Wheel Wheel Medium Storage Unit EM Pulse Gun Assault Rifle Grenade Launcher [Rating: 8] Favorites ----------- Power Ion Engine Engine Ion Engine Propulsion Aluminum Leg Leg Aluminum Leg Wheel Wheel Utility Small Storage Unit Storage Small Storage Unit Weapon Light Assault Rifle Energy Gun Medium Laser Ballistic Gun Light Assault Rifle Launcher Mini Grenade Launcher Build | -11 -10 -9 ------- Run | Scr Mat Mat Slots Evolved 2 | . . 2 Power . | . . . Propulsion 1 | . . 1 Utility 1 | . . 1 Weapon . | . . . Parts Attached 6 | 1 1 4 Power . | . . . Engine . | . . . Core . | . . . Reactor . | . . . Propulsion 4 | . 1 3 Treads . | . . . Leg 2 | . 1 1 Wheel 2 | . . 2 Hover . | . . . Flight . | . . . Utility 1 | 1 . . Device . | . . . Storage 1 | 1 . . Processor . | . . . Hackware . | . . . Protection . | . . . Artifact . | . . . Weapon 1 | . . 1 Energy Gun . | . . . Energy Cannon . | . . . Ballistic Gun . | . . . Ballistic Cannon . | . . . Launcher 1 | . . 1 Special Weapon . | . . . Impact Weapon . | . . . Slashing Weapon . | . . . Piercing Weapon . | . . . Special Melee Weapon . | . . . Unidentified Prototypes . | . . . Parts Lost 9 | . . 9 Power 1 | . . 1 Propulsion 5 | . . 5 Utility . | . . . Weapon 3 | . . 3 Highest Loss Streak 6 | . . 6 To Critical Strikes . | . . . Average Slot Usage (%) 84 | . 100 71 Engine 10 | . 14 7 Leg 25 | . 28 24 Wheel 2 | . . 3 Storage 24 | . 28 21 Energy Gun 10 | . 14 7 Ballistic Gun 10 | . 14 7 Naked Turns 8 | . . 8 Heaviest Build 18 | 18 18 18 Greatest Support 30 | 20 20 30 Greatest Overweight (x) 3 | . . 3 Average Overweight (x) . | . . . Largest Inventory Capacity 8 | 8 8 8 Average Capacity 7 | 8 8 7 Most Carried 8 | 6 8 8 Average Carried 7 | 6 7 7 Final Capacity 8 | 8 8 5 Final Carried 8 | 6 8 5 Class Distribution -------------------- 100% | Mutant Dominant Class ---------------- Mutant | -10/Materials Mutant | -9/Materials Resources | -11 -10 -9 ----------- Run | Scr Mat Mat Matter Collected 244 | 205 . 39 Remotely . | . . . Salvage Created 336 | 50 78 208 Parts 26 | 1 4 21 Haulers Intercepted . | . . . Recyclers Shooed . | . . . Parts Field Recycled . | . . . Retrieved Matter . | . . . Parts Self-Destructed . | . . . Prevented . | . . . Kills | -11 -10 -9 ------- Run | Scr Mat Mat Combat Hostiles Destroyed 10 | . 2 8 Guns 5 | . 2 3 AOE 5 | . . 5 Classes Destroyed 4 | 1 1 2 Recycler 2 | 1 . 1 Mechanic 1 | . . 1 Swarmer 3 | . . 3 Grunt 7 | . 2 5 Best Kill Streak 7 | 1 2 7 Combat Bots Only 5 | . 2 5 Max Kills in Single Turn 2 | 1 1 2 Gunslinging . | . . . Exploded 2 | . . 2 Melee . | . . . Uniques/NPCs Destroyed . | . . . Combat | -11 -10 -9 -------- Run | Scr Mat Mat Damage Taken 1270 | . 145 1125 Core 454 | . 44 410 Absorbed by Shields . | . . . Core Remaining (%) 91 | 100 82 . Volleys Fired 31 | 5 10 16 Largest 2 | 2 2 2 Hottest 70 | 70 70 70 Shots Fired 56 | 10 20 26 Gun 50 | 10 20 20 Cannon . | . . . Launcher 6 | . . 6 Special . | . . . Kinetic 25 | 5 10 10 Thermal 25 | 5 10 10 Explosive 6 | . . 6 Electromagnetic . | . . . Robot Hit Streak 13 | 2 11 13 Robot Miss Streak 3 | 3 3 2 Penetration Max . | . . . Secondary Targets . | . . . Shots Hit Robots 31 | 6 13 12 Core Hits 26 | 3 4 19 Critical Kills . | . . . Critical Parts Destroyed . | . . . Critical Strikes 1 | . . 1 Burn 1 | . . 1 Melee Attacks . | . . . Impact . | . . . Slashing . | . . . Piercing . | . . . Sneak Attacks . | . . . Combat Hostiles . | . . . Follow-up Attacks . | . . . Damage Inflicted 1017 | 72 146 799 Guns 320 | 72 146 102 Cannons . | . . . Explosions 697 | . . 697 Melee . | . . . Ramming . | . . . Kinetic 119 | 33 59 27 Thermal 201 | 39 87 75 Explosive 697 | . . 697 Electromagnetic . | . . . Impact . | . . . Slashing . | . . . Piercing . | . . . Highest Corruption 2 | . . 2 Average Corruption 2 | . . 2 Corruption Purged . | . . . Corruption Blocked . | . . . Effects 3 | . . 3 Matter Fused 1 | . . 1 Energy Discharges 1 | . . 1 Data Loss (minor) 1 | . . 1 Overload Shots . | . . . Overflow Damage 10 | . . 10 Projectiles . | . . . Explosions 10 | . . 10 Melee . | . . . Knockbacks . | . . . Impact . | . . . Kinetic . | . . . Secondary . | . . . Self-Inflicted Damage . | . . . Shots . | . . . Rammed . | . . . Targets Rammed . | . . . Kicked . | . . . Crushed . | . . . Highest Temperature 170 | 70 170 54 Average Temperature 48 | 36 80 21 Received Heat Transfer 609 | . 78 531 Siege Activations . | . . . Robots Corrupted . | . . . Combat Hostiles . | . . . Parts Fried . | . . . Impact Corruptions . | . . . Robots Melted . | . . . Combat Hostiles . | . . . Parts Melted . | . . . Heat Transferred 666 | 111 259 296 Parts Sabotaged . | . . . Parts Stolen . | . . . Parts Stripped . | . . . Power Chain Reactions . | . . . Missiles Intercepted . | . . . Alert | -11 -10 -9 ------- Run | Scr Mat Mat Peak Influence 310 | 5 113 310 Initial 47 | . 3 47 Average 77 | 3 49 110 Maximum Alert Level 1 | . . 1 Low Security (%) 97 | 100 100 94 Level 1 2 | . . 5 Level 2 . | . . . Level 3 . | . . . Level 4 . | . . . Level 5 . | . . . High Security . | . . . Max Security . | . . . Squads Dispatched 3 | . 2 1 Investigation 1 | . 1 . Extermination . | . . . Reinforcement 2 | . 1 1 Assault . | . . . Garrison . | . . . Intercept . | . . . Searches Triggered . | . . . Construction Impeded . | . . . Haulers Reinforced . | . . . Active Scanning Responses . | . . . Cargo Convoy Interrupts . | . . . Stealth | -11 -10 -9 --------- Run | Scr Mat Mat Distress Signals 2 | . . 2 Communications Jammed . | . . . Distress Signals . | . . . Times Spotted 25 | . 5 20 Peak Tracking Total 12 | . 3 12 Tactical Retreats 2 | . 1 1 Traps | -11 -10 -9 ------- Run | Scr Mat Mat Traps Triggered 3 | . 1 2 Indirectly . | . . . Trap Hack Attempts . | . . . Triggered . | . . . Disarmed . | . . . Reprogrammed . | . . . Reused . | . . . Traps Extracted . | . . . Installed . | . . . Triggered . | . . . Machines | -11 -10 -9 ---------- Run | Scr Mat Mat Machines Disabled 1 | . . 1 Max in Single Turn 1 | . . 1 Machines Sabotaged . | . . . Garrisons Compromised . | . . . Overloaded Fab Kills . | . . . Hacking | -11 -10 -9 --------- Run | Scr Mat Mat Machines Accessed 3 | . 1 2 Terminals 3 | . 1 2 Fabricators . | . . . Repair Stations . | . . . Recycling Units . | . . . Scanalyzers . | . . . Garrison Access . | . . . Total Hacks 5 | . 1 4 Successful 3 | . . 3 Failed 2 | . 1 1 Catastrophic 1 | . 1 . Database Lockouts . | . . . Manual 4 | . 1 3 Terminals 5 | . 1 4 Fabricators . | . . . Repair Stations . | . . . Recycling Units . | . . . Scanalyzers . | . . . Garrison Access . | . . . Terminal Hacks 2 | . . 2 Emergency Access Points 1 | . . 1 Terminal Index 1 | . . 1 Fabricator Hacks . | . . . Repair Station Hacks . | . . . Recycling Unit Hacks . | . . . Scanalyzer . | . . . Garrison Access Hacks . | . . . Unauthorized Hacks 1 | . . 1 Terminals 1 | . . 1 Detonate 1 | . . 1 Fabricators . | . . . Repair Stations . | . . . Recycling Units . | . . . Scanalyzers . | . . . Garrison Access . | . . . Data Cores Recovered . | . . . Used . | . . . Hacking Detections 3 | . 1 2 Full Trace Events . | . . . Feedback Events . | . . . Feedback Blocked . | . . . Robot Schematics Acquired . | . . . Robots Built . | . . . Authchips . | . . . Time . | . . . Total Robot Build Rating . | . . . Part Schematics Acquired . | . . . Parts Built . | . . . Authchips . | . . . Time . | . . . Total Part Build Rating . | . . . Parts Repaired . | . . . Time . | . . . Parts Recycled . | . . . Recycled Matter . | . . . Retrieved Matter . | . . . Retrieved Components . | . . . Parts Scanalyzed . | . . . Part Schematics Acquired . | . . . Parts Damaged . | . . . Bothacking | -11 -10 -9 ------------ Run | Scr Mat Mat Used RIF Installer . | . . . Robots Hacked . | . . . Non-combat . | . . . Combat . | . . . Robot Hacks Applied . | . . . Relay Couplers Released . | . . . Fabnet Peak Effective % . | . . . Robots Rewired . | . . . Allies Hacked . | . . . Hacks Repelled . | . . . Allies | -11 -10 -9 -------- Run | Scr Mat Mat Total Allies . | . . . Largest Group . | . . . Highest-Rated Group . | . . . Highest-Rated Ally . | . . . Total Orders . | . . . Ally Attacks . | . . . Total Damage . | . . . Kills . | . . . Allies Corrupted . | . . . Allies Melted . | . . . Intel | -11 -10 -9 ------- Run | Scr Mat Mat Robot Analysis Total . | . . . Derelict Logs Recovered . | . . . Drone Launches . | . . . Drone Recoveries . | . . . Exploration | -11 -10 -9 ------------- Run | Scr Mat Mat Turns Passed 561 | 33 239 289 Spaces Moved 350 | 15 114 221 Core 14 | . . 14 Treads . | . . . Legs 231 | 15 114 102 Wheels 105 | . . 105 Hover . | . . . Flight . | . . . Fastest Speed 50 | 120 120 50 Average Speed 107 | 120 120 99 Slowest Speed 200 | 120 120 200 Overloaded Moves . | . . . Propulsion Burnouts . | . . . Robots Hopped . | . . . Cave-ins Triggered . | . . . Exploration Rate (%) 16 | 3 21 24 Regions Visited 2 Branch Regions . Pre-discovered Areas . | . . . Known Exits Taken . | . . . Unknown Exits Taken 2 | 1 1 . Scrap Searched . | . . . Spaces Dug . | . . . Terrain Destroyed 14 | . . 14 Melee . | . . . Projectile . | . . . AOE 14 | . . 14 Terrain Rammed . | . . . Walls Destroyed . | . . . Machines Disabled . | . . . Actions | -11 -10 -9 --------- Run | Scr Mat Mat Total 485 | 20 199 266 Wait 86 | . 68 18 Move 348 | 14 113 221 Hop . | . . . Pick Up 8 | . 4 4 Fast Attach 1 | 1 . . Attach 4 | . . 4 Detach 1 | . . 1 Swap 1 | . 1 . Drop 5 | . 3 2 Fire 31 | 5 10 16 Melee . | . . . Ram . | . . . Kick . | . . . Crush . | . . . Escape Stasis . | . . . Rewire . | . . . Trap . | . . . Miscellaneous . | . . . Route ------- -11/Scrapyard -10/Materials -9/Materials History --------- Turn | Location | Event 15 | -11/Scrapyard | Discovered new exit (range 3) 34 | -11/Scrapyard | Entered Materials 268 | -10/Materials | Discovered new exit (range 4) 273 | -10/Materials | Entered another Materials area 273 | -9/Materials | Evolved 2 slots: Propulsion x1, Utility x1 313 | -9/Materials | Build established: Mutant 524 | -9/Materials | Lost 6 parts (1p3n2w) 537 | -9/Materials | Core integrity fell below 50% 549 | -9/Materials | Core integrity fell below 20% 562 | -9/Materials | Destroyed by Y-45 Defender with Beam Rifle Last Messages --------------- 00536_ Acquired Mni. Grenade Launcher. 00536_ Wheel destroyed. 00536_ Aluminum Leg destroyed. 00538_ R-06 Scavenger suffers critical hit (Burn). 00540_ Critical hit (Burn: +37). 00542_ R-06 Scavenger destroyed. 00542_ M-13 Machinist destroyed. 00544_ W-16 Scout suffers critical hit (Burn). 00544_ W-16 Scout destroyed. 00544_ G-47 Trooper destroyed. 00544_ G-34 Mercenary destroyed. 00546_ Destroyed Aluminum Leg. 00548_ G-34 Mercenary destroyed. 00552_ Electrolysis Chamber disabled. 00553_ The unstable cave ceiling collapses. 00553_ 19 Matter crushed. 00553_ Mni. Grenade Launcher destroyed. 00554_ Dropped Sml. Storage Unit. 00560_ Dropped Assault Rifle. 00561_ Acquired Wheel. Map ----- +----------------------------------------------------+ | ???????????####### ##????????# ########? | | ???????????# #????????# #???????? | | ????????#### #????????# #???????? | | ?????# """ +????????# #???????? | | ?????###### """ #????????### ###???????? | | ??????????# """ #??????????# #?????????? | | ??????????# """ #??????????# #?????????? | | ??????????# #??????????# #?????????? | | ?########## #??????????# #?????????? | | ? [ # """ #??????????# #?????????? | | ?? # """ #??????????# #?????????? | | ????""""" # """ #??????????# #?????????? | | ???"""""" + """ #??????????# #?????????? | | ???"""""" # #??????????# #?????????? | | ???"""""" # #??????????# #?????????? | | ????""""" ####### #??????????# #?????????? | | ???? #?????# #??????????# #?????????? | | ???########?????# #??????????# #?????????? | | ??????????????### #??????????# #?????????? | | ?????????????## #??????????# #?????????? | | ??????????#### #[ #??????????# #?????????? | | ??????????# [%=% #??????????# #?????????? | | ??????????# **= [ #??????????# #?????????? | | ??????????#" +??????????# #?????????? | | ??????????#T [#??????????# #?????????? | | ??????????#" @#??????????# #?????????? | | ??????????# % =#??????????# #?????????? | | ???# ?????# b ########???# #?????????? | | ???? ??# === #???# #?????????? | | ?????"" # ^=== #???# #?????????? | | ???? "T == #???# #?????????? | | ???? "" #???# #?????????? | | ???# [!! ###########???# #?????????? | | ?????#+ = ! #?????????????# #?????????? | | ?????# Y %! #?????????????# #?????????? | | ?????# * #?????????????# #?????????? | | ?????# "" #?????????????# #?????????? | | ?????## """ #?????????????# #?????????? | | ????? # """g #?????????????# #?????????? | | ????! """?# #?????????????# #?????????? | | ???? ""??+ #?????????????# #?????????? | | ??????????# #?????????????# #?????????? | | ??????????## ### #?????????????# #?????????? | | ???????????#+??# #?????????????# #?????????? | | ???????????????# #?????????????# #?????????? | | ???????????????# #?????????????# #?????????? | | ???????????????? #?????????????#+#####?????? | | ???????????????? #?????????????# #?????? | | ?????????????????????????????????# #?????? | | ?????????????????????????????????# " #?????? | +----------------------------------------------------+ Best States ------------- Heat Dissipation 28 Energy Generation 10 Energy Capacity 250 Matter Stores 300 Matter Capacity 300 Sight Range 16 Terrain Scan Density 10 Evasion (%) 55 Item Schematics ----------------- None Robot Schematics ------------------ None Fabricated ------------ Nothing Alien Tech Used ----------------- None Achievements -------------- None Challenges ------------ None Game ------ Seed AdvancedCombatMicrothruster Manual? 0 Play Time 00:05:50 Cumulative 109.0 hours Start 2022.03.02 @ 16:39:14 End 2022.03.02 @ 16:44:44 Sessions 1 Manual Loads 0 Difficulty Rogue Special Mode None Game No. 220 Rogue 220 Adventurer 0 Explorer 0 Win Type - Total 0 Types 0/0/0/0/0/0/0/0/0 Lore% 33 Gallery% 55 Achievement% 35 Wizard Run 0 Options --------- ASCII 0 Keyboard 1 Movement Vi Keybinds 0 Fullscreen 1 Font 20/SmallcapsGlow Map View 82x60 Tactical HUD 1 Map Filters NONE Filters NONE Steam 1 RUN: 5f6b01a1-0295-4ff6-904d-1657d0215a57